Cogmind - Beta 14 @@@ ROGUE MODE // 2025.03.29 @ 20:30:43 Player: Singularius Result: Destroyed by S-10 Pest with Light Assault Rifle Performance ------------- Evolutions (0) 0 Regions Visited (2) 400 Robots Destroyed (28) 140 Value Destroyed (776) 776 Prototype IDs (2) 40 Alien Tech Used (0) 0 Bonus (0) 0 TOTAL SCORE: 1356 Bonus ------- None Cogmind --------- Core Integrity 0/250 Matter 292/300 Energy 160/160 System Corruption 0% Temperature Cool (40) Movement Walking (120) Location -10/Mines Parts ------- > --- POWER (1) -------- Light Nuclear Core > --- PROPULSION (2) --- Aluminum Leg Flexi-carbon Leg > --- UTILITY (2) ------ Medium Storage Unit Signal Interpreter > --- WEAPON (2) ------- Light Assault Rifle Bore Cannon > --- INVENTORY (10) --- Light Ion Engine Flight Unit Flight Unit Flight Unit Heat Sink Visual Processing Unit Core Shielding Medium Laser Light Assault Rifle Light Assault Rifle Peak State ------------ > --- POWER ------------ Light Nuclear Core > --- PROPULSION ------- Aluminum Leg Flexi-carbon Leg > --- UTILITY ---------- Medium Storage Unit Signal Interpreter > --- WEAPON ----------- Light Assault Rifle Bore Cannon > --- INVENTORY -------- Light Ion Engine Flight Unit Flight Unit Flight Unit Heat Sink Visual Processing Unit Core Shielding Medium Laser Light Assault Rifle Light Assault Rifle [Rating: 18] Favorites ----------- Power Light Nuclear Core Engine Ion Engine Power Core Light Nuclear Core Propulsion Aluminum Leg Leg Aluminum Leg Wheel Compact Wheel Flight Unit Flight Unit Utility Signal Interpreter Storage Small Storage Unit Processor Signal Interpreter Weapon Light Assault Rifle Energy Gun EM Pulse Gun Ballistic Gun Light Assault Rifle Ballistic Cannon Bore Cannon Build | -11 -10 -10 ------- Run | Yrd Mat Min Slots Evolved . | . . . Power . | . . . Propulsion . | . . . Utility . | . . . Weapon . | . . . Parts Attached 26 | 6 13 7 Power 3 | 1 2 . Engine 2 | 1 1 . Core 1 | . 1 . Reactor . | . . . Propulsion 12 | 2 5 5 Treads . | . . . Leg 8 | . 5 3 Wheel 2 | 2 . . Hover . | . . . Flight 2 | . . 2 Utility 3 | 1 2 . Device . | . . . Storage 2 | 1 1 . Processor 1 | . 1 . Hackware . | . . . Protection . | . . . Artifact . | . . . Weapon 8 | 2 4 2 Energy Gun 2 | 1 1 . Energy Cannon . | . . . Ballistic Gun 5 | 1 3 1 Ballistic Cannon 1 | . . 1 Launcher . | . . . Special Weapon . | . . . Impact Weapon . | . . . Slashing Weapon . | . . . Piercing Weapon . | . . . Special Melee Weapon . | . . . Unidentified Prototypes . | . . . Parts Lost 6 | . 5 1 Power 1 | . 1 . Propulsion 2 | . 2 . Utility . | . . . Weapon 3 | . 2 1 Highest Loss Streak 4 | . 4 1 To Critical Strikes . | . . . Average Slot Usage (%) 98 | . 97 99 Engine 6 | . 9 . Core 7 | . 4 14 Leg 20 | . 17 25 Wheel 6 | . 9 . Storage 14 | . 14 14 Processor 13 | . 13 14 Energy Gun 3 | . 4 . Ballistic Gun 23 | . 23 25 Peak Build Rating 18 | 6 10 18 Average Rating 8 | 4 7 11 On Entrance 5 | . 6 10 Naked Turns . | . . . Heaviest Build 25 | 13 18 25 Greatest Support 30 | 26 26 30 Greatest Overweight (x) 3 | . 3 2 Average Overweight (x) . | . . . Largest Inventory Capacity 10 | 8 10 10 Average Capacity 8 | 6 8 10 Most Carried 10 | 2 9 10 Average Carried 6 | 1 5 9 Final Capacity 10 | 8 10 10 Final Carried 10 | 2 9 10 Class Distribution -------------------- 94% | Mutant 5% | Scavenger-Mutant Dominant Class ---------------- Mutant | -10/Materials Mutant | -10/Mines Resources | -11 -10 -10 ----------- Run | Yrd Mat Min Matter Collected 662 | 221 291 150 Remotely . | . . . Salvage Created 929 | . 723 206 Parts 52 | . 37 15 Haulers Intercepted . | . . . Recyclers Shooed 1 | . . 1 Parts Field Recycled . | . . . Retrieved Matter . | . . . Parts Self-Destructed . | . . . Prevented . | . . . Kills | -11 -10 -10 ------- Run | Yrd Mat Min Combat Hostiles Destroyed 25 | . 15 10 Guns 23 | . 15 8 Cannons 2 | . . 2 Classes Destroyed 6 | . 2 4 Recycler 1 | . . 1 Watcher 3 | . 3 . Swarmer 7 | . . 7 Grunt 15 | . 15 . Demolisher 2 | . . 2 Assembled 1 | . . 1 Best Kill Streak 6 | . 5 6 Combat Bots Only 6 | . 5 6 Max Kills in Single Turn 2 | . 1 2 Gunslinging . | . . . Exploded . | . . . Melee . | . . . Uniques/NPCs Destroyed . | . . . Combat | -11 -10 -10 -------- Run | Yrd Mat Min Hostile Shots Fired 132 | . 94 38 Missed 34 | . 25 9 Damage Taken 1230 | . 800 430 Core 254 | . 179 75 Absorbed by Shields . | . . . Core Remaining (%) 100 | 100 . . Volleys Fired 74 | . 50 24 Largest 2 | . 2 2 Hottest 85 | . 85 77 Shots Fired 141 | . 93 48 Gun 136 | . 93 43 Cannon 5 | . . 5 Launcher . | . . . Special . | . . . Kinetic 124 | . 76 48 Thermal 8 | . 8 . Explosive . | . . . Electromagnetic 9 | . 9 . Robot Hit Streak 12 | . 12 10 Robot Miss Streak 6 | . 5 6 Penetration Max 1 | . . 1 Secondary Targets 5 | . 5 . Max Gunslinging Chain 1 | . 1 . Shots Hit Robots 84 | . 60 24 Core Hits 48 | . 32 16 Critical Kills 3 | . . 3 Critical Parts Destroyed . | . . . Critical Strikes 3 | . . 3 Destroy 3 | . . 3 Melee Attacks . | . . . Impact . | . . . Slashing . | . . . Piercing . | . . . Sneak Attacks . | . . . Combat Hostiles . | . . . Follow-up Attacks . | . . . Damage Inflicted 992 | . 722 270 Guns 913 | . 722 191 Cannons 77 | . . 77 Explosions . | . . . Melee . | . . . Ramming 2 | . . 2 Kinetic 789 | . 521 268 Thermal 97 | . 97 . Explosive . | . . . Electromagnetic 104 | . 104 . Impact . | . . . Slashing . | . . . Piercing . | . . . Highest Corruption . | . . . Average Corruption . | . . . Corruption Purged . | . . . Corruption Blocked . | . . . Overload Shots . | . . . Overflow Damage . | . . . Projectiles . | . . . Explosions . | . . . Melee . | . . . Knockbacks . | . . . Impact . | . . . Kinetic . | . . . Secondary . | . . . Self-Inflicted Damage . | . . . Shots . | . . . Rammed . | . . . Targets Rammed 1 | . . 1 Kicked 1 | . . 1 Crushed . | . . . Highest Temperature 210 | . 210 124 Average Temperature 44 | . 56 23 Received Heat Transfer 456 | . 456 . Siege Activations . | . . . Robots Corrupted . | . . . Combat Hostiles . | . . . Parts Fried . | . . . Impact Corruptions . | . . . Robots Melted . | . . . Combat Hostiles . | . . . Parts Melted . | . . . Heat Transferred 222 | . 222 . Parts Sabotaged . | . . . Parts Stolen . | . . . Parts Stripped . | . . . Power Chain Reactions . | . . . Alert | -11 -10 -10 ------- Run | Yrd Mat Min Peak Influence 309 | . 261 309 Initial 31 | . . 31 Average 157 | . 151 191 Maximum Alert Level 1 | . 1 1 Low Security (%) 59 | 100 61 50 Level 1 40 | . 38 50 Level 2 . | . . . Level 3 . | . . . Level 4 . | . . . Level 5 . | . . . High Security . | . . . Max Security . | . . . Squads Dispatched 4 | . 4 . Investigation 3 | . 3 . Extermination . | . . . Reinforcement 1 | . 1 . Assault . | . . . Garrison . | . . . Intercept . | . . . Searches Triggered . | . . . Construction Impeded . | . . . Haulers Reinforced . | . . . Active Scanning Responses . | . . . Cargo Convoy Interrupts . | . . . Stealth | -11 -10 -10 --------- Run | Yrd Mat Min Distress Signals 1 | . 1 . Communications Jammed . | . . . Distress Signals . | . . . Times Spotted 36 | . 22 14 Peak Tracking Total 6 | . 5 6 Tactical Retreats 2 | . 1 1 Traps | -11 -10 -10 ------- Run | Yrd Mat Min Traps Triggered 1 | . 1 . Indirectly . | . . . Trap Hack Attempts . | . . . Triggered . | . . . Disarmed . | . . . Reprogrammed . | . . . Reused . | . . . Traps Extracted . | . . . Installed . | . . . Triggered . | . . . Machines | -11 -10 -10 ---------- Run | Yrd Mat Min Machines Disabled 1 | . . 1 Max in Single Turn 1 | . . 1 Machines Repaired . | . . . Machines Dismantled . | . . . Machines Sabotaged . | . . . Overloaded Fab Kills . | . . . Hacking | -11 -10 -10 --------- Run | Yrd Mat Min Machines Accessed 8 | . 8 . Terminals 6 | . 6 . Fabricators . | . . . Repair Stations 1 | . 1 . Recycling Units 1 | . 1 . Scanalyzers . | . . . Garrison Access . | . . . Total Hacks 22 | . 22 . Successful 10 | . 10 . Failed 12 | . 12 . Catastrophic . | . . . Database Lockouts . | . . . Manual . | . . . Terminals 19 | . 19 . Fabricators . | . . . Repair Stations 2 | . 2 . Recycling Units 1 | . 1 . Scanalyzers . | . . . Garrison Access . | . . . Terminal Hacks 8 | . 8 . Robot Analysis 2 | . 2 . Prototype ID Bank 1 | . 1 . Emergency Access Points 1 | . 1 . Alert Level 1 | . 1 . Locate Traps 1 | . 1 . Transport Status 1 | . 1 . Hauler Manifests 1 | . 1 . Fabricator Hacks . | . . . Repair Station Hacks 1 | . 1 . Scan Component 1 | . 1 . Recycling Unit Hacks 1 | . 1 . Report Inventory 1 | . 1 . Scanalyzer . | . . . Garrison Access Hacks . | . . . Unauthorized Hacks . | . . . Terminals . | . . . Fabricators . | . . . Repair Stations . | . . . Recycling Units . | . . . Scanalyzers . | . . . Garrison Access . | . . . Data Cores Recovered . | . . . Used . | . . . Hacking Detections 6 | . 6 . Full Trace Events 2 | . 2 . Feedback Events . | . . . Feedback Blocked . | . . . Robot Schematics Acquired . | . . . Robots Built . | . . . Authchips . | . . . Time . | . . . Total Robot Build Rating . | . . . Part Schematics Acquired . | . . . Parts Built . | . . . Authchips . | . . . Time . | . . . Total Part Build Rating . | . . . Parts Repaired . | . . . Time . | . . . Parts Recycled . | . . . Recycled Matter . | . . . Retrieved Matter . | . . . Retrieved Components . | . . . Parts Scanalyzed . | . . . Part Schematics Acquired . | . . . Parts Damaged . | . . . Bothacking | -11 -10 -10 ------------ Run | Yrd Mat Min Used RIF Installer . | . . . Robots Hacked . | . . . Non-combat . | . . . Combat . | . . . Robot Hacks Applied . | . . . Relay Couplers Released . | . . . Fabnet Peak Effective % . | . . . Robots Rewired . | . . . Allies Hacked . | . . . Hacks Repelled . | . . . Allies | -11 -10 -10 -------- Run | Yrd Mat Min Total Allies . | . . . Largest Group . | . . . Highest-Rated Group . | . . . Highest-Rated Ally . | . . . Total Orders . | . . . Ally Attacks . | . . . Total Damage . | . . . Kills . | . . . Allies Corrupted . | . . . Allies Melted . | . . . Intel | -11 -10 -10 ------- Run | Yrd Mat Min Robot Analysis Total 2 | . 2 . Derelict Logs Recovered . | . . . Drone Launches . | . . . Drone Recoveries . | . . . Exploration | -11 -10 -10 ------------- Run | Yrd Mat Min Turns Passed 1238 | 44 832 362 Spaces Moved 819 | 38 565 216 Core 7 | 2 5 . Treads . | . . . Legs 568 | . 366 202 Wheels 230 | 36 194 . Hover . | . . . Flight 14 | . . 14 Fastest Speed 50 | 50 90 120 Average Speed 113 | 88 110 124 Slowest Speed 200 | 100 200 197 Overloaded Moves . | . . . Propulsion Burnouts . | . . . Robots Hopped . | . . . Cave-ins Triggered . | . . . Exploration Rate (%) 40 | 3 79 38 Regions Visited 2 Branch Regions 1 Pre-discovered Areas . | . . . Known Exits Taken 1 | . 1 . Unknown Exits Taken 1 | 1 . . Scrap Searched . | . . . Spaces Dug . | . . . Terrain Destroyed 4 | . . 4 Melee . | . . . Projectile 4 | . . 4 AOE . | . . . Terrain Rammed . | . . . Walls Destroyed . | . . . Machines Disabled . | . . . Actions | -11 -10 -10 --------- Run | Yrd Mat Min Total 1001 | 45 688 268 Wait 56 | . 44 12 Move 817 | 37 564 216 Hop . | . . . Pick Up 16 | 2 10 4 Fast Attach 11 | 6 4 1 Attach 3 | . 2 1 Detach . | . . . Swap 12 | . 7 5 Drop 11 | . 7 4 Fire 74 | . 50 24 Melee . | . . . Ram . | . . . Kick 1 | . . 1 Crush . | . . . Escape Stasis . | . . . Rewire . | . . . Trap . | . . . Miscellaneous . | . . . Route ------- -11/Scrapyard -10/Materials (discovered 4 exits: [*Mat x3] / *Min) -10/Mines History --------- Turn | Location | Event 9 | -11/Scrapyard | Discovered new exit (range 16) 45 | -11/Scrapyard | Entered Materials 305 | -10/Materials | Build established: Mutant 353 | -10/Materials | Lost 4 parts (1p2n1w) 465 | -10/Materials | Discovered new exit (range 11) 549 | -10/Materials | Core integrity fell below 50% 636 | -10/Materials | Discovered new exit (range 16) 729 | -10/Materials | Discovered new exit (range 13) 843 | -10/Materials | Discovered new exit (range 14) 876 | -10/Materials | Identified exit to Mines 877 | -10/Materials | Entered Mines 1009 | -10/Mines | Assembled infested the area 1014 | -10/Mines | Assisted by a Guerilla fighting off Assembled 1201 | -10/Mines | Core integrity fell below 20% 1239 | -10/Mines | Destroyed by S-10 Pest with Light Assault Rifle Last Messages --------------- HV Slug penetrates Seismic Survey Station. Seismic Survey Station disabled. The unstable cave ceiling collapses. U-05 Engineer builds a Wall. Acquired 2 matter. Acquired 30 matter. The unstable cave ceiling collapses. A message is triggered: "If you're looking for Megawrench, sorry but we're not in our cave right now, after essentially being evicted by all these Unaware tunnelers." "Blame H1-IDC, who apparently didn't care about the consequences of repeatedly making a mess in Materials. Shooting at robots and generally destroying stuff raised the alert level high enough to trigger assault squads over in the main complex, and they later decided the best way to defend their interests would be to start expanding in this direction." The unstable cave ceiling collapses. Map ----- +----------------------------------------------------+ | | | | | | | | | | | | | | | | | | | | | ?????????????????????????????????????????????????? | | ?????????????????????????????????????????????????? | | ?????????????????????????????????????????????????? | | ?????????????????????????????????????????????????? | | ???????????####??????????????????????????????????? | | ???????????# #?????????????????????????????????? | | ??????????# #????????????????????????????????? | | ?????????? ###?????????????????????????????? | | ?????????? ##???????????????????????????? | | ??????????? ##??????????????????????????? | | ???????????? ##?????????????????????????? | | ???????????? ############ #??????? | | ??????????????# s #??????? | | ??????????????????# ##s######## """?????????? | | ??????????????????# #;s#?????????????????????? | | ?????????????????## @ #?????????????????????? | | ?????????????????# ############??????????????? | | ?????????????????# #?# #??????????????? | | ?????????????????# ##?# #??????????????? | | ??????????????##### ##??# """ #??????#####???? | | ???????##"##### # ##???# """ #?????## ##### | | ?????# [ ###??# """ #?????# | | ??????????#### #??# #?????? !! | | ??????????#### #===#### """ #??????# | | ??????????# != %=%*! "" #?????## ! | | ??????????# # #=### """ #????## | | ???????# # # # % =#?# #????# | | ?????# # # # # "## #????# #?? | | ???????# ## # # ## # # #????## #?? | | ????????? # ## ######### ##?????## #?? | | ??????? # ?# ######???????# ######### #?? | | ????? ? #??# #????????????#% ##?? | | ???# ?#?# ??# #????????????#%######## ##??? | | ??? # ??? #???# #????????????# #??????## ##???? | | ??? ???? ????# #????????????# #???????####????? | | ??? ???? ????## ##??????????? #???????????????? | | ???????? ????# #??????????? ???????????????? | | ???????" ?????# #??????????? ???????????????? | | ?????? ??????# ##??????????? #???????????????? | | ?????????????## ##???????????####???????????????? | +----------------------------------------------------+ Best States ------------- Heat Dissipation 25 Energy Generation 14 Energy Capacity 250 Matter Stores 300 Matter Capacity 300 Sight Range 16 Terrain Scan Density 10 Evasion (%) 55 Item Schematics ----------------- None Robot Schematics ------------------ None Fabricated ------------ Nothing Alien Tech Used ----------------- None Achievements -------------- None Challenges ------------ None Game ------ Seed TerrabombDerelictCyclogen Manual? 0 Play Time 00:16:33 Cumulative 22.0 hours Start 2025.03.29 @ 20:14:15 End 2025.03.29 @ 20:30:43 Sessions 1 Manual Loads 0 Difficulty Rogue Special Mode None Game No. 18 Rogue 18 Adventurer 0 Explorer 0 Win Type - Total 0 Types 0/0/0/0/0/0/0/0/0 Lore% 15 Gallery% 20 Achievement% 17 Wizard Run 0 Options --------- Layout 1 ASCII 0 Keyboard 0 Movement Numpad Keybinds 0 Fullscreen 1 Font 24/Smallcaps Map View 50x35 Zoom Use 0% Tactical HUD 0 Map Filters NONE Filters NONE Steam 1 RUN: db464c4e-06e2-43df-a8ba-49e5d1851ff8